bitfinex/quotes_ETHUSD_20250925
["timestamp","ask_amount","ask_price","bid_price","bid_amount"]
[1758763579006,4.439,4115.4,4115.1,3.1285621]
[1758763579185,4.439,4115.4,4115.1,0.6985]
[1758763579395,4.439,4115.4,4115.1,0.2298]
[1758763579724,4.435,4115.3,4115.2,0.2298]
[1758763580025,4.435,4115.3,4114.8,0.2298]
[1758763580183,4.435,4115.3,4114.0,4.434]
[1758763580382,4.435,4115.3,4114.9,2.43015667]
[1758763580703,4.435,4115.3,4114.4,0.2298]
[1758763581423,0.1208,4114.8,4114.1,0.1408]
[1758763581583,4.432,4114.7,4114.2,2.43055314]
[1758763581783,4.432,4114.7,4114.1,2.45062182]
[1758763582015,0.1208,4114.5,4114.4,2.4304759]
[1758763583310,4.432,4114.7,4114.1,0.02]
[1758763583311,4.426,4114.7,4114.1,0.02]
[1758763583623,4.426,4114.7,4114.2,0.2298]
[1758763583825,4.443,4114.6,4114.3,0.72280547]
[1758763583987,4.442,4114.7,4114.4,0.6985]
[1758763584192,4.442,4114.7,4114.6,2.4303699]
[1758763584410,4.442,4114.9,4114.7,2.43031083]
[1758763584612,0.793,4115.5,4114.5,0.02430428]
[1758763584827,0.001,4115.5,4115.3,2.42995391]
[1758763585131,4.44,4115.4,4115.2,2.4300092]
[1758763585297,4.44,4115.4,4114.8,0.6985]
[1758763585494,4.44,4115.4,4115.3,2.4299565]
[1758763585690,0.001,4115.5,4115.4,2.42989745]
[1758763585895,7.438,4115.5,4115.4,2.42989745]
[1758763587028,7.437,4115.5,4115.1,0.4687]
[1758763587332,7.437,4115.5,4115.2,2.42997718]
[1758763587626,0.3685,4115.4,4114.5,2.43042897]
[1758763587816,0.792,4115.3,4114.4,0.002]
[1758763588018,7.249,4115.3,4114.4,0.002]
[1758763588225,7.249,4115.3,4114.9,2.43017916]
[1758763588406,7.249,4115.3,4114.4,0.002]
[1758763588589,7.249,4115.3,4114.6,2.4303113]
[1758763588795,7.249,4115.3,4115.0,2.43012509]
[1758763589329,7.249,4115.3,4114.9,2.4301775]
[1758763589827,7.249,4115.3,4114.5,2.43042897]
[1758763590127,4.426,4115.2,4114.7,2.43031083]
[1758763590335,0.792,4115.4,4114.8,0.6985]
[1758763590627,4.426,4115.1,4115.0,2.43013365]
[1758763590835,4.426,4115.1,4114.5,0.2432429]
[1758763590836,1.10924296,4114.5,4112.1,0.14703454]
[1758763591040,2.249,4115.0,4112.1,0.14703454]
[1758763591041,0.792,4113.4,4112.1,0.04703454]
[1758763591197,2.43196575,4111.9,4111.0,0.00956]
[1758763591541,3.792,4111.2,4111.0,0.00956]
[1758763591700,10.79737984,4111.2,4111.0,0.00956]
[1758763591902,0.792,4111.0,4109.4,0.17554879]
[1758763592204,2.43165008,4112.5,4109.5,0.72283386]
[1758763592205,2.43214988,4111.6,4109.5,0.72283386]
[1758763592394,0.2685,4111.8,4109.6,0.6985]
[1758763592395,0.792,4111.3,4109.6,0.6985]
[1758763592598,0.792,4111.3,4109.7,0.6985]
[1758763592802,0.792,4111.3,4110.1,2.43302289]
[1758763593036,0.792,4111.3,4110.3,2.43285874]
[1758763593233,0.2685,4111.8,4110.2,0.94180229]
[1758763593234,0.1216,4110.7,4110.6,2.43273488]
[1758763593443,2.43182728,4112.2,4110.3,0.02432912]
[1758763593444,0.792,4112.1,4110.3,0.02432912]
[1758763593598,6.615,4112.0,4110.6,0.6985]
[1758763593798,3.792,4111.9,4110.7,0.02432675]
[1758763594000,3.792,4111.9,4110.7,0.2298]
[1758763594322,4.270259,4111.9,4110.8,0.02432616]
[1758763594521,4.290259,4111.9,4110.8,0.02432616]
[1758763594722,0.792,4111.7,4110.1,0.6985]
[1758763595027,0.792,4111.4,4110.2,0.72282971]
[1758763595362,0.498259,4111.9,4110.9,2.43252033]
[1758763595663,0.02,4111.9,4110.3,0.3155808]
[1758763595864,0.02,4111.9,4110.9,0.6985]
[1758763596068,0.02,4111.9,4111.0,0.72282498]
[1758763596238,0.02,4111.9,4111.8,2.4320249]
[1758763596443,0.02,4111.9,4111.2,0.02432379]
[1758763596765,0.02,4111.9,4111.8,2.4320249]
[1758763596928,0.02,4111.9,4111.8,0.6985]
[1758763597123,0.02,4111.9,4111.4,2.43223164]
[1758763597464,0.02,4111.9,4111.8,2.4320249]
[1758763597964,0.02,4111.9,4111.5,0.6985]
[1758763598136,0.02,4111.9,4110.9,0.2298]
[1758763598461,0.02,4111.9,4111.5,2.43218319]
[1758763598664,0.02,4111.9,4111.7,2.43208405]
[1758763598823,0.02,4111.9,4111.8,0.31549055]
[1758763599029,0.02,4111.9,4111.8,2.4320249]
[1758763599373,0.02,4111.9,4111.8,3.1305249]
[1758763601828,1e-08,4111.9,4111.8,3.1305249]
[1758763602230,1e-08,4111.9,4109.1,0.02]
[1758763602231,3.792,4111.8,4109.1,0.02]
[1758763602467,2.43285474,4110.4,4109.1,0.02]
[1758763602683,3.22508755,4110.1,4109.1,0.02]
[1758763602842,0.792,4110.1,4109.1,0.02]
[1758763603060,0.792,4109.9,4109.1,0.02]
[1758763603353,0.792,4109.5,4109.3,0.002]
[1758763603557,1.239,4109.5,4109.3,0.002]
[1758763603858,3.0,4109.9,4109.4,2.6089877]
[1758763604028,0.447,4109.8,4109.4,0.17554879]
[1758763604227,1.239,4109.7,4109.4,0.17554879]
[1758763605254,1.239,4109.7,4108.7,1.92621763]
[1758763605255,3.0,4110.0,4105.5,0.2386]
[1758763605455,0.85648066,4109.6,4106.1,0.4914]
[1758763605665,6.874,4109.5,4106.8,0.4714]
[1758763605856,0.447,4109.4,4107.2,0.73434748]
[1758763606164,2.88044877,4109.4,4108.1,2.43420507]
[1758763606330,0.447,4109.4,4107.3,0.83303475]
[1758763606530,3.0,4109.7,4108.3,2.43403999]
[1758763606730,3.0,4109.7,4108.1,0.2386]
[1758763606969,3.0,4109.5,4107.5,4.555]
[1758763607126,0.447,4109.4,4107.6,2.56480347]
[1758763607326,0.447,4109.4,4108.2,2.43413338]
[1758763607529,0.447,4109.4,4108.4,2.43399993]
[1758763607770,0.447,4109.3,4107.2,0.2386]
[1758763608063,0.447,4109.3,4107.6,2.43448726]
[1758763608287,2.43373984,4109.0,4107.7,2.4344204]
[1758763608427,3.0,4108.9,4108.1,2.43418475]
[1758763608633,3.0,4108.9,4107.7,0.24344204]
[1758763608829,3.0,4108.9,4107.5,0.2386]
[1758763609033,3.0,4108.9,4108.1,2.43419421]
[1758763609505,3.0,4108.9,4107.7,2.026]
[1758763609671,3.0,4108.9,4108.2,2.43411724]
[1758763609876,3.0,4108.9,4107.6,2.026]
[1758763610078,0.447,4109.6,4107.7,0.73434452]
[1758763610281,0.447,4109.6,4107.8,3.1443931]
[1758763610474,0.447,4109.6,4108.8,2.43379142]
[1758763610679,0.02,4109.9,4108.4,0.2386]
[1758763610888,0.02,4109.9,4108.9,2.4336978]
[1758763611092,0.02,4109.9,4108.5,2.43397833]
[1758763611314,0.02,4109.9,4108.4,2.027]
[1758763611514,0.02,4109.9,4108.9,2.43373752]
[1758763611816,0.02,4109.9,4108.9,2.43368264]
[1758763612115,0.02,4109.9,4109.0,2.43367846]
[1758763612420,0.02,4109.9,4108.4,0.71]
[1758763612631,0.02,4109.9,4108.5,0.51710902]
[1758763612918,2.45317671,4109.9,4108.9,2.43370731]
[1758763613125,0.02,4109.9,4108.4,0.71]
[1758763613324,0.02,4109.9,4108.2,2.027]
[1758763613325,0.02,4109.9,4108.5,0.26293978]
[1758763613517,0.02,4109.9,4109.3,2.43346292]
[1758763613716,0.02,4109.9,4109.6,2.43331831]
[1758763614024,0.02,4109.9,4109.0,0.71]
[1758763614328,0.02,4109.9,4109.7,2.43321784]
[1758763614515,0.02,4109.9,4109.6,2.43331426]
[1758763614712,0.02,4109.9,4109.8,2.43320842]
[1758763615117,0.02,4109.9,4109.8,3.70085839]
[1758763615326,0.1416,4109.9,4109.8,3.70085839]
[1758763615714,0.02,4109.9,4109.8,3.70085839]
[1758763616171,0.1216,4110.7,4110.2,2.43296566]
[1758763616327,0.1216,4110.7,4110.5,2.43278336]
[1758763616527,0.1216,4110.7,4110.0,0.1216]
[1758763616740,0.02,4110.9,4110.0,0.549836]
[1758763616927,0.02,4110.9,4110.1,2.43303082]
[1758763617132,0.1216,4110.4,4110.2,2.43297163]
[1758763617341,0.1216,4110.4,4110.3,3.14291243]
[1758763617541,0.1216,4110.8,4110.7,2.4326757]
[1758763617866,0.02,4110.9,4110.8,2.43261652]
[1758763618035,0.02,4110.9,4110.8,3.14261652]
[1758763618238,0.02,4110.9,4110.8,3.26421652]
[1758763618434,1e-08,4110.9,4110.8,3.14261652]
[1758763618636,1e-08,4110.9,4110.8,3.9271725]
[1758763619447,1e-08,4110.9,4110.8,10.8391725]
[1758763621460,1e-08,4110.9,4110.8,8.7961725]
[1758763621780,1e-08,4110.9,4110.8,3.9271725]
[1758763621936,1e-08,4110.9,4110.8,10.8231725]
[1758763622763,0.00100001,4110.9,4110.8,10.8231725]
[1758763623534,0.00100001,4110.9,4110.8,14.30686947]
[1758763623734,1e-08,4111.9,4111.8,2.4320249]
[1758763623962,1e-08,4112.9,4111.8,7.39173323]
[1758763624163,1e-08,4112.9,4112.8,2.43143357]
[1758763624426,1e-08,4112.9,4112.8,9.3327479]
[1758763624542,1e-08,4112.9,4112.8,9.96633357]
[1758763625367,0.001,4115.1,4114.8,2.43025177]
[1758763625677,0.001,4115.1,4113.4,2.43106886]
[1758763625872,0.001,4115.1,4113.7,0.2288]
[1758763626237,0.001,4115.1,4113.9,2.43078344]
[1758763626473,0.001,4115.1,4114.4,2.43048804]
[1758763626657,0.001,4115.1,4114.8,2.43025177]
[1758763626968,0.001,4115.1,4114.8,2.45455428]
[1758763627157,1e-08,4114.9,4114.8,3.69563287]
[1758763627357,1e-08,4114.9,4113.5,18.46848848]
[1758763627358,21.12559299,4114.9,4110.1,0.2488]
[1758763627671,3.0,4112.8,4110.1,0.02]
[1758763627884,3.0,4112.6,4111.1,0.02]
[1758763628037,0.4699,4112.7,4111.1,0.02]
[1758763628370,2.43167007,4112.4,4111.1,0.02]
[1758763628585,0.1216,4111.2,4111.1,0.02]
[1758763629782,0.4699,4111.2,4111.1,0.02]
[1758763629937,2.90227984,4111.2,4111.1,0.02]
[1758763630142,0.49421139,4111.2,4111.1,0.02]
[1758763630492,0.49421139,4111.8,4111.1,0.02]
[1758763630641,2.43208634,4111.7,4111.1,0.02]
[1758763630837,0.02431139,4111.6,4111.1,0.02]
[1758763631042,0.4699,4111.5,4111.1,0.02]
[1758763631246,0.49421139,4111.4,4111.1,0.02]
[1758763631468,0.4699,4111.4,4111.1,0.02]
[1758763631852,0.49421139,4111.3,4111.1,0.02]
[1758763632270,0.02431139,4111.3,4111.1,0.02]
[1758763632475,0.4584,4112.3,4111.1,0.02]
[1758763632720,0.02431139,4112.2,4111.1,0.02]
[1758763632865,0.4584,4112.3,4112.0,2.43188491]
[1758763633061,0.4584,4113.0,4112.0,2.43185075]
[1758763633261,0.02431139,4112.9,4111.2,2.2649]
[1758763633709,0.02431139,4112.9,4112.1,2.43180519]
[1758763633868,0.4584,4113.0,4112.2,2.43173693]
[1758763634061,2.88942051,4113.5,4112.2,2.43177166]
[1758763634310,0.02431139,4113.4,4112.0,2.026]
[1758763634717,2.45539448,4113.4,4112.4,2.43161625]
[1758763634878,2.45539448,4113.4,4111.4,3.46411184]
[1758763634879,2.43124656,4113.2,4111.8,2.026]
[1758763635079,0.02431139,4113.1,4112.0,2.43189993]
[1758763635406,0.02431139,4113.2,4112.3,2.4317292]
[1758763635746,0.02,4113.9,4113.2,2.43118217]
[1758763635910,0.04431139,4113.9,4113.2,2.43118217]
[1758763636089,0.04431139,4113.9,4112.7,0.2389]
[1758763636289,0.02,4113.9,4113.6,2.43095422]
[1758763636492,0.02,4113.9,4113.7,2.43089825]
[1758763636811,0.02,4113.9,4113.5,2.43101519]
[1758763637014,0.02,4113.9,4113.5,2.43099769]
[1758763637311,0.02,4113.9,4113.8,2.43084253]
[1758763637517,0.02,4113.9,4112.8,0.02431433]
[1758763637715,0.02,4113.9,4112.9,0.47206875]
[1758763637918,0.02,4113.9,4112.1,0.2389]
[1758763637919,0.48271139,4113.8,4112.1,0.2389]
[1758763638212,2.43092214,4113.7,4112.7,2.43147023]
[1758763638414,0.02431139,4113.6,4112.8,2.4314107]
[1758763638719,0.02431139,4113.6,4113.0,2.43131075]
[1758763638918,0.02431139,4113.6,4112.5,6.892]
[1758763639217,0.02431139,4113.6,4112.1,0.2389]
[1758763639416,3.792,4113.4,4112.5,2.43156761]
[1758763639634,0.02431139,4113.3,4112.6,2.43151303]
[1758763640023,0.1208,4112.6,4112.1,2.026]
[1758763640204,0.1208,4112.6,4112.5,2.43161094]
[1758763641428,1.2704,4113.9,4113.3,2.43112506]
[1758763641636,0.02431139,4113.8,4113.3,2.43111712]
[1758763641844,0.02431139,4113.8,4112.7,2.43149269]
[1758763642004,0.1208,4113.3,4113.2,2.43119712]
[1758763642744,0.1208,4113.3,4113.2,2.45550909]
[1758763642943,0.021,4113.9,4113.8,2.43084253]
[1758763643110,0.021,4113.9,4113.7,2.43089563]
[1758763644434,0.1208,4113.7,4113.6,2.43096071]
[1758763644818,0.1208,4113.7,4113.6,2.66986071]
[1758763645241,0.1208,4113.7,4113.6,2.43096071]
[1758763646353,0.1208,4113.7,4113.6,2.66986071]
[1758763646648,0.1208,4113.7,4113.6,3.13006071]
[1758763647180,0.1208,4113.7,4113.6,3.15437031]
[1758763647386,0.021,4113.9,4113.7,2.43090162]
[1758763647568,0.021,4113.9,4113.8,2.43084253]
[1758763647742,0.021,4113.9,4113.8,2.45515095]
[1758763647948,0.021,4113.9,4113.8,2.43084253]
[1758763648376,0.021,4113.9,4113.8,2.66974253]
[1758763648682,0.021,4113.9,4113.8,7.23584253]
[1758763648882,0.021,4113.9,4113.8,7.93494253]
[1758763649645,0.021,4113.9,4113.8,2.43084253]
[1758763649882,0.021,4113.9,4113.8,7.46674253]
[1758763650080,0.021,4113.9,4113.8,7.92694253]
[1758763650587,0.021,4113.9,4113.8,7.46674253]
[1758763650888,0.021,4113.9,4113.8,7.45974253]
[1758763651181,0.021,4113.9,4113.8,7.91994253]
[1758763651385,0.021,4113.9,4113.8,7.45974253]
[1758763651587,0.021,4113.9,4113.8,7.91994253]
[1758763651743,0.021,4113.9,4113.8,2.43084253]
[1758763651947,0.021,4113.9,4113.8,9.47874253]
[1758763652148,0.021,4113.9,4113.8,9.23984253]
[1758763652346,0.021,4113.9,4113.8,2.43084253]
[1758763652546,0.4794,4113.9,4112.0,2.43188833]
[1758763652749,0.4794,4113.9,4112.4,0.4602]
[1758763652983,0.4794,4113.9,4112.5,2.67051094]
[1758763653188,0.4794,4113.9,4113.6,2.43091506]
[1758763653356,0.4794,4113.9,4113.6,4.779]
[1758763653558,0.021,4113.9,4113.6,4.779]
[1758763653864,0.021,4113.9,4113.6,7.20995898]
[1758763654184,0.021,4113.9,4113.6,4.779]
[1758763654354,0.021,4113.9,4113.6,7.20995477]
[1758763654557,0.021,4113.9,4113.6,7.20994783]
[1758763654776,0.021,4113.9,4113.6,4.779]
[1758763654972,0.021,4113.9,4113.6,7.20993697]
[1758763655177,0.021,4113.9,4113.7,2.43088318]
[1758763655357,0.021,4113.9,4113.6,4.779]
[1758763655870,0.021,4113.9,4113.6,7.20995479]
[1758763656072,0.021,4113.9,4113.7,2.43090162]
[1758763656278,0.021,4113.9,4113.6,7.20995014]
[1758763656588,2.43110573,4115.1,4113.7,0.72340901]
[1758763656789,0.001,4115.1,4114.5,2.4303704]
[1758763657084,0.001,4115.1,4114.5,2.43040327]
[1758763657286,0.001,4115.1,4114.6,4.756]
[1758763657664,0.001,4115.1,4114.6,7.18636152]
[1758763657862,0.001,4115.1,4114.6,4.756]
[1758763658288,0.001,4115.1,4114.6,7.18636494]
[1758763658473,0.001,4115.1,4113.8,0.4602]
[1758763658679,0.001,4115.1,4113.9,6.771]
[1758763658873,0.001,4115.1,4114.5,2.43038043]
[1758763659052,0.001,4115.1,4113.9,0.2389]
[1758763659259,0.001,4115.1,4114.6,2.43036951]
[1758763659588,0.001,4115.1,4114.6,2.43035894]
[1758763659891,0.001,4115.1,4114.6,7.17235894]
[1758763660198,0.001,4115.1,4114.5,4.738]
[1758763660362,0.001,4115.1,4114.7,2.43031083]
[1758763660694,0.001,4115.1,4114.6,4.736]
[1758763661787,0.001,4115.1,4114.7,2.43031083]
[1758763662262,0.001,4115.1,4114.8,2.43025177]
[1758763662766,0.1208,4114.8,4114.7,4.726]
[1758763662960,0.1208,4114.8,4114.7,7.15231083]
[1758763663162,0.1208,4114.8,4114.7,4.722]
[1758763663363,0.1208,4114.8,4114.7,7.15231083]
[1758763663579,0.1208,4114.8,4114.7,4.722]
[1758763663797,0.001,4115.1,4112.5,2.43157297]
[1758763663996,3.4363,4114.8,4113.2,2.43119712]
[1758763664172,2.43053931,4114.4,4113.7,2.43085934]
[1758763664374,0.4363,4114.3,4113.0,2.025]
[1758763664573,2.43072721,4114.0,4113.2,2.43117794]
[1758763664765,0.4363,4114.2,4113.1,2.43124981]
[1758763664965,0.4363,4114.2,4112.6,1.1253573]
[1758763664966,2.43078609,4113.9,4113.2,4.716]
[1758763665160,2.43078609,4113.9,4113.3,4.716]
[1758763665368,3.0,4113.9,4112.8,2.43143023]
[1758763665567,2.43108694,4113.4,4112.9,4.711]
[1758763665767,3.0,4113.3,4112.9,4.711]
[1758763666074,3.0,4113.3,4112.7,7.14447721]
[1758763666267,5.43116196,4113.3,4112.7,4.713]
[1758763666480,2.43113801,4113.3,4112.7,4.713]
[1758763666773,2.86738257,4113.4,4112.7,4.713]
[1758763666973,3.0,4113.5,4112.7,4.713]
[1758763667179,2.43107891,4113.4,4112.7,4.713]
[1758763667360,2.43114878,4113.3,4112.7,4.713]
[1758763667564,2.43117577,4113.3,4112.7,4.705]
[1758763667778,5.43117577,4113.3,4112.5,2.43155654]
[1758763668004,3.0,4113.3,4112.6,4.705]
[1758763668199,5.43118831,4113.3,4112.6,4.705]
[1758763668503,5.43118831,4113.3,4112.6,7.13654598]
[1758763668983,2.43107051,4113.5,4112.6,4.705]
[1758763669184,0.792,4113.5,4112.6,4.705]
[1758763669485,0.4363,4113.8,4112.6,4.705]
[1758763669711,0.792,4113.7,4112.8,2.43138301]
[1758763670079,3.0,4113.6,4112.8,2.43138301]
[1758763670279,3.792,4113.7,4113.1,2.43124276]
[1758763670486,0.792,4113.7,4112.7,0.2493]
[1758763670712,0.792,4113.8,4113.3,2.43113383]
[1758763670912,3.0,4113.9,4113.4,2.43107805]
[1758763671108,22.46824212,4114.4,4113.1,4.692]
[1758763671309,2.025,4115.0,4114.3,2.43052307]
[1758763671509,2.43026994,4114.8,4113.8,4.686]
[1758763671710,2.43019916,4114.9,4114.1,2.43062408]
[1758763672107,1e-08,4114.9,4114.3,2.43049347]
[1758763672312,1e-08,4114.9,4114.1,2.43061474]
[1758763672511,0.792,4114.7,4114.2,2.43060088]
[1758763672712,1e-08,4114.9,4113.8,5.3981]
[1758763672915,0.792,4114.7,4113.8,5.3981]
[1758763673090,0.792,4114.7,4113.4,0.2493]
[1758763673421,3.22232456,4114.7,4113.9,2.4307308]
[1758763673719,3.22232456,4114.7,4113.9,2.43077812]
[1758763673923,3.22232456,4114.7,4114.1,2.43064924]
[1758763673924,3.792,4114.7,4114.1,2.43064924]
[1758763674222,3.792,4114.7,4113.9,2.43078184]
[1758763674527,3.22232221,4114.7,4114.0,2.43071362]
[1758763674728,0.1208,4114.0,4113.6,4.677]
[1758763674909,0.1208,4114.0,4113.9,2.43078344]
[1758763677327,0.1208,4114.0,4113.9,2.68008344]
[1758763677525,0.1208,4114.0,4113.9,3.14288344]
[1758763678919,0.1208,4114.0,4113.9,4.16526193]
[1758763679229,0.1208,4114.0,4113.9,4.18956976]
[1758763679424,1e-08,4114.9,4113.9,4.18956976]
[1758763679425,0.1208,4114.3,4113.9,1.73447849]
[1758763679630,0.1208,4114.3,4114.2,2.43060619]
[1758763679995,0.1208,4114.3,4114.2,2.67990619]
[1758763681029,1e-08,4114.9,4114.8,2.43025177]
[1758763681243,0.12080001,4114.9,4114.8,2.43025177]
[1758763681449,1e-08,4114.9,4114.8,3.11985177]
[1758763681595,1e-08,4114.9,4114.8,7.75685177]
[1758763681797,1e-08,4114.9,4114.8,8.1437812]
[1758763682638,0.001,4114.4,4112.6,0.002]
[1758763682817,0.792,4114.1,4112.6,0.002]
[1758763682994,3.0,4113.5,4112.6,0.002]
[1758763683195,3.0,4113.6,4112.6,0.002]
[1758763683196,2.43112568,4113.4,4112.6,0.002]
[1758763683429,2.43108576,4113.4,4112.6,2.433506]
[1758763683619,2.43108576,4113.4,4112.7,4.657]
[1758763684127,2.43116415,4113.3,4112.7,4.657]
[1758763684329,5.43113801,4113.3,4112.7,4.657]
[1758763684652,2.4310944,4113.4,4112.7,4.657]
[1758763685260,2.43119214,4113.3,4112.7,4.657]
[1758763685422,3.0,4114.0,4112.8,0.02431433]
[1758763685623,0.792,4113.9,4113.1,2.43123466]
[1758763685821,5.43038405,4114.6,4113.2,5.35891197]
[1758763686021,2.88672967,4114.7,4113.7,2.43084308]
[1758763686226,2.43054945,4114.3,4113.7,4.644]
[1758763686420,2.43061842,4114.2,4113.7,4.644]
[1758763686656,6.22354529,4114.4,4113.7,4.644]
[1758763686828,2.43056569,4114.3,4113.7,4.644]
[1758763687254,5.43056569,4114.3,4113.7,4.644]
[1758763688027,5.43061777,4114.2,4113.7,4.644]
[1758763688278,2.43061777,4114.2,4113.7,4.644]
[1758763688747,0.001,4114.4,4113.7,4.644]
[1758763688952,3.0,4114.2,4113.7,4.644]
[1758763689149,0.001,4114.4,4113.8,0.2408]
[1758763689355,0.001,4114.4,4113.8,0.71390842]
[1758763689548,0.001,4114.4,4113.8,0.6896]
[1758763689751,2.43056101,4114.3,4113.8,0.2408]
[1758763690062,2.43066372,4114.2,4113.6,4.629]
[1758763690261,2.43066372,4114.2,4112.9,0.4488]
[1758763690262,2.43098385,4113.6,4112.9,0.4488]
[1758763690461,4.2484,4114.1,4113.0,1.305]
[1758763690764,2.43099766,4113.6,4113.0,1.305]
[1758763690960,2.43099766,4113.6,4112.9,2.43135862]
[1758763691164,2.43099766,4113.6,4112.9,4.626]
[1758763691368,0.792,4113.6,4112.7,2.43145607]
[1758763691531,2.43104573,4113.5,4112.8,4.623]
[1758763691926,2.43108365,4113.4,4112.7,7.05444565]
[1758763692235,2.43103547,4113.5,4112.8,2.4314209]
[1758763692628,0.1208,4112.8,4112.6,0.002]
[1758763692829,3.22349269,4112.7,4112.6,0.002]
[1758763693129,6.65779269,4112.7,4112.6,0.002]
[1758763693375,3.792,4112.7,4112.6,0.002]
[1758763693573,6.22349269,4112.7,4112.6,0.002]
[1758763693933,3.792,4112.7,4112.6,0.002]
[1758763695229,3.0,4112.7,4112.6,0.002]
[1758763696454,3.0,4112.7,4112.6,0.7206]
[1758763696669,2.43161094,4112.5,4112.1,0.02]
[1758763696831,0.792,4112.2,4111.8,0.002]
[1758763697037,6.22396575,4111.9,4111.8,0.002]
[1758763697452,6.65826575,4111.9,4111.8,0.002]
[1758763697851,11.26626575,4111.9,4111.8,0.002]
[1758763701003,13.27426575,4111.9,4111.8,0.002]
[1758763701169,3.792,4111.9,4111.8,0.002]
[1758763701499,8.358,4111.9,4111.8,0.002]
[1758763701675,10.78996575,4111.9,4111.8,0.002]
[1758763702066,8.358,4111.9,4111.8,0.002]
[1758763702575,3.792,4111.9,4111.8,0.002]
[1758763702776,3.22426151,4111.4,4111.3,0.002]
[1758763702982,3.0,4112.0,4111.3,0.002]
[1758763703161,0.792,4111.7,4111.3,0.002]
[1758763703366,2.43226151,4111.4,4111.3,0.002]
[1758763703603,5.43226151,4111.4,4111.3,0.002]
[1758763703774,6.22426151,4111.4,4111.3,0.002]
[1758763704707,3.792,4111.4,4111.3,0.002]
[1758763705014,5.386,4111.4,4111.3,0.002]
[1758763705313,10.81826151,4111.4,4111.3,0.002]
[1758763705622,8.386,4111.4,4111.3,0.002]
[1758763706580,3.792,4111.3,4108.2,0.4711]
[1758763706804,3.0,4110.7,4109.7,0.2475]
[1758763706968,26.26024212,4110.3,4109.7,0.2475]
[1758763707193,30.84924212,4110.3,4109.7,0.2475]
[1758763707749,33.28215455,4110.3,4109.7,0.2475]
[1758763707895,33.28215455,4110.3,4109.4,0.4711]
[1758763708095,33.28215455,4110.3,4109.4,2.90454298]
[1758763708296,30.84924212,4110.3,4109.6,0.2475]
[1758763708524,30.84924212,4110.3,4109.7,2.43325773]
[1758763709144,30.84924212,4110.3,4108.9,2.43370026]
[1758763709145,3.0,4110.3,4110.2,5.7186]
[1758763709313,7.583,4110.3,4110.2,8.15157163]
[1758763709746,3.0,4110.3,4110.2,8.15157163]
[1758763709900,2.026,4111.4,4111.0,2.43248899]
[1758763710094,2.026,4111.4,4110.2,6.77906411]
[1758763710095,22.58809535,4112.0,4111.1,0.7186]
[1758763710342,22.46824212,4112.0,4111.1,0.7186]
[1758763710546,2.026,4111.9,4111.2,0.2475]
[1758763710700,4.576,4111.8,4111.6,2.43214159]
[1758763710901,3.0,4111.7,4111.6,2.43214159]
[1758763711132,2.026,4112.4,4112.0,2.43188946]
[1758763711335,4.574,4112.3,4112.1,2.43184143]
[1758763711599,4.574,4112.2,4112.0,0.2475]
[1758763711829,7.574,4112.1,4112.0,0.2475]
[1758763712033,4.574,4112.1,4112.0,2.43190661]
[1758763712334,4.57,4112.1,4112.0,0.2475]
[1758763712832,4.57,4112.1,4112.0,2.67940661]
[1758763713334,0.792,4112.0,4110.5,0.4711]
[1758763713532,0.792,4112.0,4111.2,0.2475]
[1758763713899,0.792,4112.0,4111.2,2.67987901]
[1758763714100,0.792,4112.0,4111.6,2.43213572]
[1758763714434,4.57,4112.1,4111.7,2.43208405]
[1758763714435,3.792,4111.8,4111.7,2.43208405]
[1758763714806,0.792,4112.4,4111.8,2.43201094]
[1758763715027,6.589,4112.3,4111.8,2.43201774]
[1758763715226,0.792,4112.1,4111.8,2.43201774]
[1758763715433,0.792,4112.1,4111.1,2.43243204]
[1758763715434,2.026,4112.6,4112.1,2.43184614]
[1758763715605,3.0,4112.4,4112.2,0.2475]
[1758763715806,7.559,4112.3,4112.2,2.67928833]
[1758763715999,7.559,4112.3,4111.7,0.2475]
[1758763716000,3.0,4112.2,4111.7,0.2475]
[1758763716305,4.559,4112.3,4111.7,0.2475]
[1758763716619,4.559,4112.3,4111.8,0.2475]
[1758763717130,0.792,4111.8,4110.2,5.0]
[1758763717318,0.792,4111.6,4110.9,2.43251228]
[1758763717518,0.792,4111.6,4111.0,2.43246282]
[1758763717706,0.792,4111.6,4110.7,2.68017549]
[1758763717907,0.792,4111.6,4110.9,2.4325403]
[1758763718100,0.792,4111.6,4110.7,0.2475]
[1758763718306,3.792,4111.3,4110.6,2.43269523]
[1758763718530,3.0,4111.1,4110.7,2.43266641]
[1758763719439,5.43249136,4111.1,4110.4,0.2475]
[1758763719611,5.43249136,4111.1,4110.3,2.43286618]
[1758763719807,5.43249136,4111.1,4110.2,5.0]
[1758763719808,0.792,4110.6,4110.2,5.0]
[1758763720140,3.0,4110.4,4110.2,5.2475]
[1758763720451,7.556,4110.3,4110.2,5.0]
[1758763720806,7.556,4110.3,4110.2,7.43297163]
[1758763721051,3.0,4110.3,4110.2,8.15157163]
[1758763721845,2.026,4111.2,4111.0,2.43247091]
[1758763722017,0.001,4111.7,4110.7,0.2304]
[1758763722248,0.001,4111.7,4111.1,0.2304]
[1758763722639,0.001,4111.7,4111.2,0.4718]
[1758763722839,0.001,4111.7,4111.2,2.90417762]
[1758763723039,0.001,4111.7,4111.6,2.4321432]
[1758763723447,0.001,4111.7,4111.6,2.6625432]